fUSD/lending_fUSD_20240212
["ID","MTS","AMOUNT","RATE_DAILY","PERIOD"]
[313837207,1707748312737,-151.0,0.00027397,7]
[313837208,1707748312746,-151.0,0.00027397,7]
[313837209,1707748312756,-151.0,0.00027397,7]
[313837210,1707748312765,-151.0,0.00027397,7]
[313837211,1707748312775,-4553.27,0.00027397,10]
[313837212,1707748312784,-151.0,0.00027397,7]
[313837213,1707748312795,-151.0,0.00027397,7]
[313837214,1707748312804,-245.124917,0.00027397,7]
[313837215,1707748312814,-151.0,0.00027397,7]
[313837216,1707748312823,-151.0,0.00027397,7]
[313837217,1707748312832,-151.0,0.00027397,7]
[313837218,1707748312841,-151.0,0.00027397,7]
[313837219,1707748312851,-151.0,0.00027397,7]
[313837220,1707748312860,-151.0,0.00027397,7]
[313837221,1707748312870,-151.0,0.00027397,7]
[313837222,1707748312879,-151.0,0.00027397,7]
[313837223,1707748312889,-160.853627,0.00027397,7]
[313837224,1707748312899,-1326.805079,0.00027397,7]
[313837225,1707748312908,-1326.805079,0.00027397,7]
[313837226,1707748312918,-1326.805079,0.00027397,7]
[313837227,1707748312927,-1326.805079,0.00027397,7]
[313837228,1707748312936,-1326.805079,0.00027397,7]
[313837229,1707748312946,-1326.805079,0.00027397,7]
[313837230,1707748312955,-1326.805079,0.00027397,7]
[313837231,1707748312965,-1326.805079,0.00027397,7]
[313837232,1707748312974,-1326.805079,0.00027397,7]
[313837233,1707748312984,-1326.805079,0.00027397,7]
[313837234,1707748312993,-1326.805079,0.00027397,7]
[313837235,1707748313003,-1326.805079,0.00027397,7]
[313837236,1707748313013,-1326.805079,0.00027397,7]
[313837237,1707748313022,-1326.805079,0.00027397,7]
[313837238,1707748313032,-1326.805079,0.00027397,7]
[313837239,1707748313042,-1326.805079,0.00027397,7]
[313837240,1707748313052,-1326.805079,0.00027397,7]
[313837241,1707748313061,-1326.805079,0.00027397,7]
[313837242,1707748313071,-1326.805079,0.00027397,7]
[313837243,1707748313080,-3794.39,0.00027397,10]
[313837244,1707748313090,-1326.805083,0.00027397,7]
[313837245,1707748313100,-151.0,0.00027397,7]
[313837246,1707748313109,-151.0,0.00027397,7]
[313837247,1707748313118,-152.195522,0.00027397,7]
[313837248,1707748313128,-500.0,0.000274,2]
[313837249,1707748313137,-449.0,0.000274,15]
[313837250,1707748313146,-2000.0,0.000274,2]
[313837251,1707748313156,-500.0,0.000274,7]
[313837252,1707748313165,-500.0,0.000274,7]
[313837253,1707748313174,-500.0,0.000274,7]
[313837254,1707748313183,-500.0,0.000274,7]
[313837255,1707748313192,-500.0,0.000274,7]
[313837256,1707748313201,-500.0,0.000274,7]
[313837257,1707748313210,-500.0,0.000274,7]
[313837258,1707748313219,-500.0,0.000274,7]
[313837259,1707748313228,-500.0,0.000274,7]
[313837260,1707748313237,-500.0,0.000274,7]
[313837261,1707748313247,-500.0,0.000274,7]
[313837262,1707748313256,-500.0,0.000274,7]
[313837263,1707748313265,-500.0,0.000274,7]
[313837264,1707748313274,-500.0,0.000274,7]
[313837265,1707748313283,-500.0,0.000274,7]
[313837266,1707748313292,-500.0,0.000274,7]
[313837267,1707748313303,-500.0,0.000274,7]
[313837268,1707748313314,-500.0,0.000274,7]
[313837269,1707748313323,-500.0,0.000274,7]
[313837270,1707748313333,-500.0,0.000274,7]
[313837271,1707748313342,-500.0,0.000274,7]
[313837272,1707748313355,-500.0,0.000274,7]
[313837273,1707748313364,-500.0,0.000274,7]
[313837274,1707748313374,-500.0,0.000274,7]
[313837275,1707748313383,-500.0,0.000274,7]
[313837276,1707748313392,-500.0,0.000274,7]
[313837277,1707748313402,-376.0,0.000274,7]
[313837278,1707748313412,-2054.27,0.000274,2]
[313837279,1707748313423,-2054.27,0.000274,2]
[313837280,1707748313433,-2054.27,0.000274,2]
[313837281,1707748313443,-500.0,0.00027404,2]
[313837282,1707748313453,-1366.1,0.00027404,2]
[313837283,1707748313463,-1016.55234458,0.00027417,2]
[313837284,1707748313472,-150.0,0.00027418,2]
[313837285,1707748313481,-2110.37,0.00027419,2]
[313837286,1707748313490,-6142.49,0.00027419,2]
[313837287,1707748313500,-500.0,0.00027419,2]
[313837288,1707748313510,-676.37,0.00027419,2]
[313837289,1707748313520,-1791.31,0.00027419,2]
[313837290,1707748313529,-564.38,0.00027419,2]
[313837291,1707748313538,-2125.32,0.00027419,2]
[313837292,1707748313549,-500.0,0.00027419,2]
[313837293,1707748313559,-746.12,0.00027419,2]
[313837294,1707748313568,-6506.4,0.00027419,2]
[313837295,1707748313576,-746.22,0.00027419,2]
[313837296,1707748313586,-500.0,0.00027419,2]
[313837297,1707748313595,-500.0,0.00027419,2]
[313837298,1707748313604,-500.0,0.00027419,2]
[313837299,1707748313613,-1926.94,0.00027419,2]
[313837300,1707748313622,-1829.63,0.00027419,2]
[313837301,1707748313631,-504.23,0.00027419,2]
[313837302,1707748313641,-2230.81,0.00027419,2]
[313837303,1707748313650,-500.0,0.00027419,2]
[313837304,1707748313659,-500.0,0.00027419,2]
[313837305,1707748313669,-5597.11,0.00027419,2]
[313837306,1707748313679,-2899.6,0.00027419,2]
[313837307,1707748313690,-589.65,0.00027419,2]
[313837308,1707748313699,-828.89,0.00027419,2]
[313837309,1707748313709,-155.28403879,0.000275,2]
[313837310,1707748313718,-150.0,0.00027501,2]
[313837311,1707748313726,-2611.65,0.00027502,2]
[313837312,1707748313735,-1871.51,0.00027502,2]
[313837313,1707748313744,-15228.44,0.00027502,2]
[313837314,1707748313754,-1123.04,0.00027502,2]
[313837315,1707748313764,-636.73496886,0.00027502,2]
[313837316,1707748313774,-669.38,0.00027502,2]
[313837317,1707748313784,-7454.03,0.00027502,2]
[313837318,1707748313793,-656.99,0.00027502,2]
[313837319,1707748313805,-1132.61,0.00027502,2]
[313837320,1707748313815,-607.87,0.00027502,2]
[313837321,1707748313982,-2975.67,0.00027502,2]
[313837322,1707748313992,-1380.57,0.00027502,2]
[313837323,1707748314001,-1785.04,0.00027502,2]
[313837324,1707748314012,-1602.71,0.00027502,2]
[313837325,1707748314022,-1140.13,0.00027502,2]
[313837326,1707748314032,-2106.31,0.00027502,2]
[313837327,1707748314042,-1276.82,0.00027502,2]
[313837328,1707748314054,-11488.97,0.00027502,2]
[313837329,1707748314063,-779.37,0.00027502,2]
[313837330,1707748314074,-522.1,0.00027502,2]
[313837331,1707748314084,-500.0,0.00027502,2]
[313837332,1707748314093,-862.25,0.00027502,2]
[313837333,1707748314103,-954.69,0.00027502,2]
[313837334,1707748314112,-4038.41,0.00027502,2]
[313837335,1707748314122,-2125.47,0.00027502,2]
[313837336,1707748314131,-3098.18,0.00027502,2]
[313837337,1707748314141,-4848.26,0.00027502,2]
[313837338,1707748314150,-1169.49,0.00027502,2]
[313837339,1707748314159,-2525.28,0.00027502,2]
[313837340,1707748314169,-660.1,0.00027504,2]
[313837341,1707748314178,-676.33,0.00027504,2]
[313837342,1707748314187,-500.0,0.00027504,2]
[313837343,1707748314196,-500.0,0.00027504,2]
[313837344,1707748314205,-500.0,0.00027504,2]
[313837345,1707748314215,-500.0,0.00027504,2]
[313837346,1707748314224,-500.0,0.00027504,2]
[313837347,1707748314233,-526.84,0.00027504,2]
[313837348,1707748314242,-500.0,0.00027504,2]
[313837349,1707748314251,-529.5,0.00027504,2]
[313837350,1707748314261,-652.95,0.00027504,2]
[313837351,1707748314270,-651.67,0.00027504,2]
[313837352,1707748314279,-567.71,0.00027504,2]
[313837353,1707748314288,-500.0,0.00027504,2]
[313837354,1707748314299,-784.11,0.00027504,2]
[313837355,1707748314309,-524.91,0.00027504,2]
[313837356,1707748314319,-872.77,0.00027504,2]
[313837357,1707748314329,-639.25,0.00027504,2]
[313837358,1707748314338,-500.0,0.00027504,2]
[313837359,1707748314348,-1296.69,0.00027504,2]
[313837360,1707748314360,-500.0,0.00027504,2]
[313837361,1707748314370,-517.62,0.00027504,2]
[313837362,1707748314380,-4333.7,0.00027504,2]
[313837363,1707748314389,-1895.9,0.00027504,2]
[313837364,1707748314398,-923.15,0.00027504,2]
[313837365,1707748314407,-1121.1,0.00027504,2]
[313837366,1707748314417,-500.0,0.00027504,2]
[313837367,1707748314427,-4100.88,0.00027504,2]
[313837368,1707748314437,-251.9230128,0.00027504,2]
[313837369,1707748314446,-791.85,0.00027504,2]
[313837370,1707748314455,-1394.8,0.00027504,2]
[313837371,1707748314464,-575.24,0.00027504,2]
[313837372,1707748314475,-715.53,0.00027504,2]
[313837373,1707748314484,-637.77,0.00027504,2]
[313837374,1707748314494,-1763.67,0.00027504,2]
[313837375,1707748314503,-2032.84,0.00027504,2]
[313837376,1707748314512,-686.28,0.00027504,2]
[313837377,1707748314522,-689.11,0.00027504,2]
[313837378,1707748314531,-1500.18,0.00027504,2]
[313837379,1707748314541,-4391.98,0.00027504,2]
[313837380,1707748314552,-637.5,0.00027504,2]
[313837381,1707748314561,-1040.77,0.00027504,2]
[313837382,1707748314571,-1065.07,0.00027504,2]
[313837383,1707748314581,-500.0,0.00027504,2]
[313837384,1707748314591,-596.16,0.00027504,2]
[313837385,1707748314601,-706.62,0.00027504,2]
[313837386,1707748314611,-500.0,0.00027504,2]
[313837387,1707748314620,-4062.09,0.00027504,2]
[313837388,1707748314630,-1058.56,0.00027504,2]
[313837389,1707748314639,-721.91,0.00027504,2]
[313837390,1707748314649,-3863.5,0.00027504,2]
[313837391,1707748314658,-559.05,0.00027504,2]
[313837392,1707748314668,-5323.17,0.00027504,2]
[313837393,1707748314677,-1797.81,0.00027504,2]
[313837394,1707748314687,-683.21,0.00027504,2]
[313837395,1707748314697,-1838.78,0.00027504,2]
[313837396,1707748314707,-508.34,0.00027504,2]
[313837397,1707748314716,-945.99,0.00027504,2]
[313837398,1707748314725,-874.97,0.00027504,2]
[313837399,1707748314735,-500.0,0.00027504,2]
[313837400,1707748314744,-2272.98,0.00027504,2]
[313837401,1707748314754,-1286.15,0.00027504,2]
[313837402,1707748314764,-502.26,0.00027504,2]
[313837403,1707748314773,-639.88,0.00027506,2]
[313837404,1707748314782,-524.07,0.00027506,2]
[313837405,1707748314791,-859.17,0.00027506,2]
[313837406,1707748314801,-8642.09,0.00027506,2]
[313837407,1707748314810,-500.0,0.00027506,2]
[313837408,1707748314819,-907.74,0.00027506,2]
[313837409,1707748314828,-659.8,0.00027506,2]
[313837410,1707748314837,-6204.93,0.00027506,2]
[313837411,1707748314846,-552.57,0.00027506,2]
[313837412,1707748314855,-500.0,0.00027506,2]
[313837413,1707748314865,-1134.83,0.00027506,2]
[313837414,1707748314874,-1147.71,0.00027506,2]
[313837415,1707748314882,-500.0,0.00027506,2]
[313837416,1707748314892,-500.0,0.00027506,2]
[313837417,1707748314902,-2142.38,0.00027506,2]
[313837418,1707748314911,-1578.9,0.00027506,2]
[313837419,1707748314921,-1527.65,0.00027506,2]
[313837420,1707748314930,-628.61,0.00027506,2]
[313837421,1707748314940,-1715.49,0.00027506,2]
[313837422,1707748314950,-1537.51,0.00027506,2]
[313837423,1707748314960,-1757.6,0.00027506,2]
[313837424,1707748314971,-2089.11,0.00027506,2]
[313837425,1707748314980,-1017.68,0.00027506,2]
[313837426,1707748314990,-1161.37,0.00027506,2]
[313837427,1707748315000,-590.03,0.00027506,2]
[313837428,1707748315010,-10286.15,0.00027506,2]
[313837429,1707748315020,-1897.21,0.00027506,2]
[313837430,1707748315029,-935.54,0.00027506,2]
[313837431,1707748315038,-7934.79,0.00027506,2]
[313837432,1707748315049,-500.0,0.00027506,14]
[313837433,1707748315059,-2190.55,0.00027506,2]
[313837434,1707748315068,-454.92,0.00027506,2]
[313837435,1707748315078,-1376.25,0.00027506,2]
[313837436,1707748315088,-6405.5,0.00027506,2]
[313837437,1707748315110,-4161.56,0.00027506,2]
[313837438,1707748315128,-692.19,0.00027506,2]
[313837439,1707748315148,-1262.54,0.00027587,2]
[313837440,1707748315170,-1207.47,0.00027587,2]
[313837441,1707748315186,-581.28,0.00027587,2]
[313837442,1707748315204,-500.0,0.00027587,2]
[313837443,1707748315221,-500.0,0.00027587,2]
[313837444,1707748315238,-500.0,0.00027587,2]
[313837445,1707748315256,-662.95,0.00027587,2]
[313837446,1707748315273,-500.0,0.00027587,2]
[313837447,1707748315292,-500.0,0.00027587,2]
[313837448,1707748315315,-500.0,0.00027587,2]
[313837449,1707748315329,-500.0,0.00027587,2]
[313837450,1707748315346,-785.31,0.00027587,2]
[313837451,1707748315367,-500.0,0.00027587,2]
[313837452,1707748315383,-500.0,0.00027587,2]
[313837453,1707748315398,-1057.6,0.00027587,2]
[313837454,1707748315414,-623.82,0.00027587,2]
[313837455,1707748315429,-1500.0,0.00027587,2]
[313837456,1707748315444,-681.61,0.00027587,2]
[313837457,1707748315459,-1004.0,0.00027587,2]
[313837458,1707748315473,-500.0,0.00027593,2]
[313837459,1707748315488,-300.0,0.0002765,2]
[313837460,1707748315503,-500.0,0.00027678,2]
[313837461,1707748315517,-1366.1,0.00027678,2]
[313837462,1707748315531,-2110.37,0.00027693,2]
[313837463,1707748315546,-6142.49,0.00027693,2]
[313837464,1707748315561,-557.16,0.00027693,2]
[313837465,1707748315576,-676.37,0.00027693,2]
[313837466,1707748315591,-1791.31,0.00027693,2]
[313837467,1707748315605,-564.38,0.00027693,2]
[313837468,1707748315619,-2125.32,0.00027693,2]
[313837469,1707748315633,-500.0,0.00027693,2]
[313837470,1707748315649,-746.12,0.00027693,2]
[313837471,1707748315663,-6506.4,0.00027693,2]
[313837472,1707748315679,-746.22,0.00027693,2]
[313837473,1707748315692,-500.0,0.00027693,2]
[313837474,1707748315706,-500.0,0.00027693,2]
[313837475,1707748315721,-500.0,0.00027693,2]
[313837476,1707748315736,-1926.94,0.00027693,2]
[313837477,1707748315751,-1829.63,0.00027693,2]
[313837478,1707748315767,-504.23,0.00027693,2]
[313837479,1707748315781,-2230.81,0.00027693,2]
[313837480,1707748315796,-500.0,0.00027693,2]
[313837481,1707748315811,-500.0,0.00027693,2]
[313837482,1707748315825,-5597.11,0.00027693,2]
[313837483,1707748315840,-2899.6,0.00027693,2]
[313837484,1707748315855,-828.89,0.00027693,2]
[313837485,1707748315869,-500.0,0.00027755,2]
[313837486,1707748315884,-500.0,0.00027755,2]
[313837487,1707748315899,-500.0,0.00027764,2]
[313837488,1707748315913,-500.0,0.00027764,2]
[313837489,1707748315928,-500.0,0.00027764,2]
[313837490,1707748315943,-500.0,0.00027773,2]
[313837491,1707748315959,-500.0,0.00027773,2]
[313837492,1707748315973,-500.0,0.00027773,2]
[313837493,1707748315988,-2611.65,0.00027776,2]
[313837494,1707748316002,-1871.51,0.00027776,2]
[313837495,1707748316016,-15228.44,0.00027776,2]
[313837496,1707748316031,-1123.04,0.00027776,2]
[313837497,1707748316045,-669.38,0.00027776,2]
[313837498,1707748316061,-7454.03,0.00027776,2]
[313837499,1707748316075,-656.99,0.00027776,2]
[313837500,1707748316089,-1132.61,0.00027776,2]
[313837501,1707748316104,-607.87,0.00027776,2]
[313837502,1707748316119,-2975.67,0.00027776,2]
[313837503,1707748316133,-1380.57,0.00027776,2]
[313837504,1707748316148,-1785.04,0.00027776,2]
[313837505,1707748316162,-1602.71,0.00027776,2]
[313837506,1707748316177,-1140.13,0.00027776,2]
[313837507,1707748316192,-2106.31,0.00027776,2]
[313837508,1707748316207,-1276.82,0.00027776,2]
[313837509,1707748316221,-11488.97,0.00027776,2]
[313837510,1707748316235,-779.37,0.00027776,2]
[313837511,1707748316250,-522.1,0.00027776,2]
[313837512,1707748316264,-862.25,0.00027776,2]
[313837513,1707748316277,-954.69,0.00027776,2]
[313837514,1707748316291,-4038.41,0.00027776,2]
[313837515,1707748316306,-2125.47,0.00027776,2]
[313837516,1707748316326,-3098.18,0.00027776,2]
[313837517,1707748316340,-4848.26,0.00027776,2]
[313837518,1707748316353,-1169.49,0.00027776,2]
[313837519,1707748316369,-2525.28,0.00027776,2]
[313837520,1707748316383,-660.1,0.00027778,2]
[313837521,1707748316398,-676.33,0.00027778,2]
[313837522,1707748316415,-500.0,0.00027778,2]
[313837523,1707748316429,-500.0,0.00027778,2]
[313837524,1707748316444,-500.0,0.00027778,2]
[313837525,1707748316459,-337.97475833,0.00027778,2]
[313837526,1707748316474,-500.0,0.00027778,2]
[313837527,1707748316488,-526.84,0.00027778,2]
[313837528,1707748316502,-500.0,0.00027778,2]
[313837529,1707748316517,-529.5,0.00027778,2]
[313837530,1707748316531,-652.95,0.00027778,2]
[313837531,1707748316546,-651.67,0.00027778,2]
[313837532,1707748316559,-567.71,0.00027778,2]
[313837533,1707748316574,-500.0,0.00027778,2]
[313837534,1707748316590,-784.11,0.00027778,2]
[313837535,1707748316604,-524.91,0.00027778,2]
[313837536,1707748316619,-872.77,0.00027778,2]
[313837537,1707748316634,-639.25,0.00027778,2]
[313837538,1707748316649,-500.0,0.00027778,2]
[313837539,1707748316663,-1296.69,0.00027778,2]
[313837540,1707748316678,-500.0,0.00027778,2]
[313837541,1707748316692,-517.62,0.00027778,2]
[313837542,1707748316707,-4333.7,0.00027778,2]
[313837543,1707748316722,-1895.9,0.00027778,2]
[313837544,1707748316737,-923.15,0.00027778,2]
[313837545,1707748316752,-1121.1,0.00027778,2]
[313837546,1707748316770,-500.0,0.00027778,2]
[313837547,1707748316786,-4100.88,0.00027778,2]
[313837548,1707748316804,-791.85,0.00027778,2]
[313837549,1707748316820,-1394.8,0.00027778,2]
[313837550,1707748316837,-575.24,0.00027778,2]
[313837551,1707748317075,-715.53,0.00027778,2]
[313837552,1707748317101,-637.77,0.00027778,2]
[313837553,1707748317111,-1763.67,0.00027778,2]
[313837554,1707748317122,-2032.84,0.00027778,2]
[313837555,1707748317132,-686.28,0.00027778,2]
[313837556,1707748317142,-689.11,0.00027778,2]
[313837557,1707748317152,-1500.18,0.00027778,2]
[313837558,1707748317161,-4391.98,0.00027778,2]
[313837559,1707748317171,-637.5,0.00027778,2]
[313837560,1707748317181,-1040.77,0.00027778,2]
[313837561,1707748317190,-1065.07,0.00027778,2]
[313837562,1707748317199,-500.0,0.00027778,2]
[313837563,1707748317208,-596.16,0.00027778,2]
[313837564,1707748317217,-706.62,0.00027778,2]
[313837565,1707748317226,-500.0,0.00027778,2]
[313837566,1707748317235,-4062.09,0.00027778,2]
[313837567,1707748317244,-1058.56,0.00027778,2]
[313837568,1707748317254,-721.91,0.00027778,2]
[313837569,1707748317263,-3863.5,0.00027778,2]
[313837570,1707748317272,-559.05,0.00027778,2]
[313837571,1707748317282,-5323.17,0.00027778,2]
[313837572,1707748317291,-1797.81,0.00027778,2]
[313837573,1707748317301,-683.21,0.00027778,2]
[313837574,1707748317311,-1838.78,0.00027778,2]
[313837575,1707748317321,-508.34,0.00027778,2]
[313837576,1707748317330,-945.99,0.00027778,2]
[313837577,1707748317339,-874.97,0.00027778,2]
[313837578,1707748317348,-500.0,0.00027778,2]
[313837579,1707748317361,-2272.98,0.00027778,2]
[313837580,1707748317370,-1286.15,0.00027778,2]
[313837581,1707748317380,-502.26,0.00027778,2]
[313837582,1707748317389,-639.88,0.0002778,2]
[313837583,1707748317398,-524.07,0.0002778,2]
[313837584,1707748317407,-859.17,0.0002778,2]
[313837585,1707748317417,-8642.09,0.0002778,2]
[313837586,1707748317426,-500.0,0.0002778,2]
[313837587,1707748317436,-907.74,0.0002778,2]
[313837588,1707748317446,-659.8,0.0002778,2]
[313837589,1707748317455,-6204.93,0.0002778,2]
[313837590,1707748317465,-500.0,0.0002778,2]
[313837591,1707748317475,-1134.83,0.0002778,2]
[313837592,1707748317485,-1147.71,0.0002778,2]
[313837593,1707748317494,-500.0,0.0002778,2]
[313837594,1707748317503,-484.48,0.0002778,2]
[313837595,1707748317512,-2142.38,0.0002778,2]
[313837596,1707748317522,-1578.9,0.0002778,2]
[313837597,1707748317532,-1527.65,0.0002778,2]
[313837598,1707748317541,-628.61,0.0002778,2]
[313837599,1707748317552,-1715.49,0.0002778,2]
[313837600,1707748317561,-1537.51,0.0002778,2]
[313837601,1707748317570,-1757.6,0.0002778,2]
[313837602,1707748317580,-2089.11,0.0002778,2]
[313837603,1707748317590,-1017.68,0.0002778,2]
[313837604,1707748317599,-1161.37,0.0002778,2]
[313837605,1707748317608,-590.03,0.0002778,2]
[313837606,1707748317617,-10286.15,0.0002778,2]
[313837607,1707748317627,-1897.21,0.0002778,2]
[313837608,1707748317637,-935.54,0.0002778,2]
[313837609,1707748317647,-7934.79,0.0002778,2]
[313837610,1707748317656,-500.0,0.0002778,14]
[313837611,1707748317666,-2190.55,0.0002778,2]
[313837612,1707748317675,-1376.25,0.0002778,2]
[313837613,1707748317685,-6405.5,0.0002778,2]
[313837614,1707748317695,-4161.56,0.0002778,2]
[313837615,1707748317704,-692.19,0.0002778,2]
[313837616,1707748317713,-1262.54,0.00027861,2]
[313837617,1707748317722,-1207.47,0.00027861,2]
[313837618,1707748317732,-581.28,0.00027861,2]
[313837619,1707748317741,-500.0,0.00027861,2]
[313837620,1707748317749,-500.0,0.00027861,2]
[313837621,1707748317758,-500.0,0.00027861,2]
[313837622,1707748317768,-662.95,0.00027861,2]
[313837623,1707748317777,-500.0,0.00027861,2]
[313837624,1707748317786,-500.0,0.00027861,2]
[313837625,1707748317795,-500.0,0.00027861,2]
[313837626,1707748317805,-500.0,0.00027861,2]
[313837627,1707748317814,-785.31,0.00027861,2]
[313837628,1707748317823,-244.17476972,0.00027861,2]
[313837629,1707748317833,-500.0,0.00027861,2]
[313837630,1707748317842,-1057.6,0.00027861,2]
[313837631,1707748317851,-623.82,0.00027861,2]
[313837632,1707748317860,-1500.0,0.00027861,2]
[313837633,1707748317869,-681.61,0.00027861,2]
[313837634,1707748317878,-1004.0,0.00027861,2]
[313837635,1707748317887,-8102.45148789,0.000279,2]
[313837636,1707748317896,-449.0,0.000279,16]
[313837637,1707748317906,-155.84,0.00027918,4]
[313837638,1707748317915,-155.841,0.00027918,4]
[313837639,1707748317924,-155.841,0.00027918,4]
[313837640,1707748317933,-155.841,0.00027918,4]
[313837641,1707748317945,-300.0,0.00027945,5]
[313837642,1707748317955,-150.0,0.00027945,2]
[313837643,1707748317964,-153.65894992,0.00027952,2]
[313837644,1707748317973,-1366.1,0.00027952,2]
[313837645,1707748317982,-2110.37,0.00027967,2]
[313837646,1707748317991,-6142.49,0.00027967,2]
[313837647,1707748318000,-676.37,0.00027967,2]
[313837648,1707748318009,-1791.31,0.00027967,2]
[313837649,1707748318019,-564.38,0.00027967,2]
[313837650,1707748318028,-2125.32,0.00027967,2]
[313837651,1707748318038,-500.0,0.00027967,2]
[313837652,1707748318047,-746.12,0.00027967,2]
[313837653,1707748318058,-6506.4,0.00027967,2]
[313837654,1707748318067,-746.22,0.00027967,2]
[313837655,1707748318076,-500.0,0.00027967,2]
[313837656,1707748318085,-500.0,0.00027967,2]
[313837657,1707748318094,-500.0,0.00027967,2]
[313837658,1707748318103,-1926.94,0.00027967,2]
[313837659,1707748318112,-1829.63,0.00027967,2]
[313837660,1707748318122,-504.23,0.00027967,2]
[313837661,1707748318132,-2230.81,0.00027967,2]
[313837662,1707748318141,-591.24332013,0.00027967,2]
[313837663,1707748318150,-500.0,0.00027967,2]
[313837664,1707748318159,-5597.11,0.00027967,2]
[313837665,1707748318169,-2899.6,0.00027967,2]
[313837666,1707748318179,-500.0,0.00027982,2]
[313837667,1707748318189,-500.0,0.00027991,2]
[313837668,1707748318199,-936.46556254,0.00028,2]
[313837669,1707748318210,-710.42379686,0.00028,29]
[313837670,1707748318220,-330.0,0.00028,10]
[313837671,1707748318230,-20535.16837484,0.00028,2]
[313837672,1707748318239,-2012.34235154,0.00028,2]
[313837673,1707748318249,-864.32792852,0.00028,30]
[313837674,1707748318259,-376.84793,0.00028,7]
[313837675,1707748318269,-500.0,0.00028,2]
[313837676,1707748318279,-266700.17901445,0.00028,2]
[313837677,1707748318288,-14759.88894441,0.00028,2]
[313837678,1707748318298,-295.19777889,0.00028,2]
[313837679,1707748318313,-200.26125164,0.00028,2]
[313837680,1707748318323,-4000.0,0.00028,3]
[313837681,1707748318333,-160.0,0.00028044,2]
[313837682,1707748318342,-2611.65,0.0002805,2]
[313837683,1707748318351,-1871.51,0.0002805,2]
[313837684,1707748318362,-15228.44,0.0002805,2]
[313837685,1707748318373,-1123.04,0.0002805,2]
[313837686,1707748318383,-669.38,0.0002805,2]
[313837687,1707748318393,-7454.03,0.0002805,2]
[313837688,1707748318402,-656.99,0.0002805,2]
[313837689,1707748318411,-1132.61,0.0002805,2]
[313837690,1707748318421,-607.87,0.0002805,2]
[313837691,1707748318431,-2975.67,0.0002805,2]
[313837692,1707748318441,-1380.57,0.0002805,2]
[313837693,1707748318450,-1785.04,0.0002805,2]
[313837694,1707748318460,-1602.71,0.0002805,2]
[313837695,1707748318469,-1140.13,0.0002805,2]
[313837696,1707748318479,-2106.31,0.0002805,2]
[313837697,1707748318489,-1276.82,0.0002805,2]
[313837698,1707748318499,-11488.97,0.0002805,2]
[313837699,1707748318509,-779.37,0.0002805,2]
[313837700,1707748318519,-522.1,0.0002805,2]
[313837701,1707748318529,-862.25,0.0002805,2]
[313837702,1707748318539,-954.69,0.0002805,2]
[313837703,1707748318549,-4038.41,0.0002805,2]
[313837704,1707748318561,-2125.47,0.0002805,2]
[313837705,1707748318570,-3098.18,0.0002805,2]
[313837706,1707748318578,-4848.26,0.0002805,2]